[Event "ROU-ch Women 2019"]
[Site "Olanesti"]
[Date "2019.03.02"]
[Round "1.16"]
[White "Morea, Georgiana-Steluta"]
[Black "Peptan, Corina-Isabela"]
[Result "0-1"]
[ECO "A22"]
[WhiteElo "1885"]
[BlackElo "2374"]
[Annotator "NA"]
[PlyCount "60"]
[EventDate "2019.03.02"]
[EventType "swiss"]
[EventCountry "ROU"]
[SourceTitle "playchess.com"]
[Source "ChessBase"]
[SourceQuality "1"]
[TimeControl "40/5400+30:1800+30"]

1. c4 {[%emt 0:00:00]} e5 {[%emt 0:00:00]} 2. Nc3 {[%emt 0:00:00]} Nf6 {[%emt 0:00:00]} 3. g3 {[%emt 0:00:07]} Bb4 {[%emt 0:00:22]} 4. Bg2 {[%emt 0:00:27]} c6 {[%emt 0:00:11]} 5. e4 {[%emt 0:01:41]} d6 {[%emt 0:01:38]} 6. Nge2 {[%emt 0:00:25]} Be6 {[%emt 0:05:31]} 7. d3 {[%emt 0:00:31]} a5 {[%emt 0:03:43]} 8. O-O {[%emt 0:01:24]} O-O {[%emt 0:00:57]} 9. h3 {[%emt 0:00:23]} d5 {[%emt 0:03:56]} 10. cxd5 {[%emt 0:04:06]} cxd5 {[%emt 0:00:08]} 11. Bg5 {[%emt 0:03:53]} d4 {[%emt 0:14:44]} 12. Nd5 Bxd5 {[%emt 0:00:50]} 13. exd5 {[%emt 0:00:36]} h6 {[%emt 0:00:09]} 14. Bxf6 {[%emt 0:08:07]} Qxf6 {[%emt 0:00:02]} 15. Rc1 {[%emt 0:00:37]} Qb6 {[%emt 0:09:45]} 16. f4 {[%emt 0:04:29]} exf4 {[%emt 0:00:00]} 17. Nxf4 {[%emt 0:02:19]} Nd7 {[%emt 0:01:20]} 18. b3 {[%emt 0:01:43]} Rae8 {[%emt 0:12:33]} 19. Rc2 {[%emt 0:01:58]} Re3 {[%emt 0:01:18]} 20. Kh2 {[%emt 0:00:59]} Bd6 {[%emt 0:02:48]} 21. Rcf2 {[%emt 0:01:59]} Nf6 {[%emt 0:02:51]} 22. Rf3 {[%emt 0:02:26]} Rfe8 {[%emt 0:06:32]} 23. Kh1 {[%emt 0:08:53]} Bxf4 {[%emt 0:04:17]} 24. Rxf4 {[%emt 0:04:14]} Rxg3 {[%emt 0:00:10]} 25. Rxf6 {[%emt 0:00:22]} gxf6 {[%emt 0:00:08]} 26. Qh5 {[%emt 0:00:16]} Kg7 {[%emt 0:01:17]} 27. Be4 {[%emt 0:09:35]} Re5 {[%emt 0:02:32]} 28. Qh4 {[%emt 0:05:04]} Reg5 {[%emt 0:00:51]} 29. Bf5 {[%emt 0:05:36]} Qc5 {[%emt 0:01:50]} 30. Bg4 {[%emt 0:01:33]} Qxd5+ {[%emt 0:00:27]} 0-1

[Event "ROU-ch Women 2019"]
[Site "Olanesti"]
[Date "2019.03.02"]
[Round "1.17"]
[White "Cosma, Elena-Luminita"]
[Black "Balan, Briana-Cleopatra"]
[Result "1-0"]
[ECO "D02"]
[WhiteElo "2324"]
[BlackElo "1873"]
[Annotator "NA"]
[PlyCount "61"]
[EventDate "2019.03.02"]
[EventType "swiss"]
[EventCountry "ROU"]
[SourceTitle "playchess.com"]
[Source "ChessBase"]
[SourceQuality "1"]
[TimeControl "40/5400+30:1800+30"]

1. d4 {[%emt 0:00:00]} d5 {[%emt 0:00:00]} 2. Nf3 {[%emt 0:00:00]} e6 {[%emt 0:00:09]} 3. g3 {[%emt 0:00:00]} Bd6 {[%emt 0:02:08]} 4. Bg2 {[%emt 0:00:06]} Ne7 {[%emt 0:00:21]} 5. O-O {[%emt 0:02:14]} O-O {[%emt 0:00:24]} 6. c4 {[%emt 0:05:23]} c6 {[%emt 0:06:05]} 7. b3 {[%emt 0:00:30]} Nd7 {[%emt 0:02:59]} 8. Ba3 {[%emt 0:01:36]} Bxa3 {[%emt 0:04:05]} 9. Nxa3 {[%emt 0:00:04]} Ng6 {[%emt 0:00:07]} 10. Qd2 {[%emt 0:07:09]} Qe7 {[%emt 0:02:51]} 11. Qb2 {[%emt 0:00:38]} Rd8 {[%emt 0:10:06]} 12. Rfd1 {[%emt 0:04:42]} dxc4 {[%emt 0:06:59]} 13. Nxc4 {[%emt 0:01:33]} c5 {[%emt 0:07:02]} 14. Rac1 {[%emt 0:07:05]} Rb8 {[%emt 0:09:36]} 15. dxc5 {[%emt 0:05:27]} Nxc5 {[%emt 0:04:15]} 16. Rxd8+ {[%emt 0:07:31]} Qxd8 {[%emt 0:01:02]} 17. Qa3 {[%emt 0:00:20]} b6 {[%emt 0:13:18]} 18. Qxa7 {[%emt 0:10:25]} Ba6 {[%emt 0:10:49]} 19. Nfe5 {[%emt 0:03:26]} Ne7 {[%emt 0:03:25]} 20. b4 {[%emt 0:06:49]} Bxc4 {[%emt 0:05:35]} 21. Nxc4 {[%emt 0:00:52]} b5 {[%emt 0:03:08]} 22. Ne3 {[%emt 0:04:03]} Na4 {[%emt 0:02:05]} 23. Rc7 {[%emt 0:01:33]} Nd5 {[%emt 0:01:59]} 24. Bxd5 {[%emt 0:01:56]} exd5 {[%emt 0:00:16]} 25. Rxf7 {[%emt 0:00:11]} Qg5 {[%emt 0:01:13]} 26. h4 {[%emt 0:01:38]} Qg6 {[%emt 0:00:31]} 27. Rxg7+ {[%emt 0:00:40]} Qxg7 {[%emt 0:00:09]} 28. Qxb8+ {[%emt 0:00:04]} Kf7 {[%emt 0:00:17]} 29. Qb7+ {[%emt 0:00:14]} Kf8 {[%emt 0:00:09]} 30. Qxg7+ {[%emt 0:00:25]} Kxg7 {[%emt 0:00:05]} 31. Nxd5 {[%emt 0:00:04]} 1-0

[Event "ROU-ch Women 2019"]
[Site "Olanesti"]
[Date "2019.03.02"]
[Round "1.18"]
[White "Paraschiv, Petronela-Alexandra"]
[Black "Sandu, Mihaela"]
[Result "0-1"]
[ECO "E10"]
[WhiteElo "1872"]
[BlackElo "2294"]
[Annotator "NA"]
[PlyCount "72"]
[EventDate "2019.03.02"]
[EventType "swiss"]
[EventCountry "ROU"]
[SourceTitle "playchess.com"]
[Source "ChessBase"]
[SourceQuality "1"]
[TimeControl "40/5400+30:1800+30"]

1. c4 {[%emt 0:00:00]} Nf6 {[%emt 0:00:00]} 2. d4 {[%emt 0:00:00]} e6 {[%emt 0:00:21]} 3. Nf3 {[%emt 0:00:08]} c5 {[%emt 0:00:17]} 4. e3 {[%emt 0:00:39]} Be7 {[%emt 0:02:38]} 5. Bd3 {[%emt 0:02:28]} Nc6 {[%emt 0:00:37]} 6. O-O {[%emt 0:01:19]} O-O {[%emt 0:04:06]} 7. a3 {[%emt 0:01:21]} d5 {[%emt 0:01:01]} 8. dxc5 {[%emt 0:01:25]} dxc4 {[%emt 0:03:59]} 9. Bxc4 {[%emt 0:00:44]} Bxc5 {[%emt 0:00:05]} 10. b4 {[%emt 0:00:59]} Bd6 {[%emt 0:10:58]} 11. Nc3 {[%emt 0:00:55]} Ne5 {[%emt 0:04:56]} 12. Bb3 {[%emt 0:09:48]} a6 {[%emt 0:28:43]} 13. Bb2 {[%emt 0:00:58]} Qc7 {[%emt 0:01:59]} 14. h3 {[%emt 0:06:09]} Rd8 {[%emt 0:01:29]} 15. Qe2 {[%emt 0:03:47]} Nd3 {[%emt 0:04:58]} 16. Rfd1 {[%emt 0:02:37]} Nxb2 {[%emt 0:00:06]} 17. Qxb2 {[%emt 0:00:07]} Bd7 {[%emt 0:00:07]} 18. Rac1 {[%emt 0:00:29]} Bc6 {[%emt 0:05:20]} 19. Nd4 {[%emt 0:03:45]} Bh2+ {[%emt 0:07:34]} 20. Kh1 {[%emt 0:03:44]} Be5 {[%emt 0:00:10]} 21. Nce2 {[%emt 0:05:52]} Ne4 {[%emt 0:00:53]} 22. Kg1 {[%emt 0:01:10]} Bh2+ {[%emt 0:05:47]} 23. Kf1 {[%emt 0:00:11]} Qe5 {[%emt 0:00:17]} 24. Qc2 {[%emt 0:06:02]} Qf6 {[%emt 0:01:54]} 25. f3 {[%emt 0:05:47]} Bd5 {[%emt 0:01:53]} 26. Bxd5 {[%emt 0:02:56]} exd5 {[%emt 0:00:02]} 27. b5 {[%emt 0:12:29]} h5 {[%emt 0:02:29]} 28. bxa6 {[%emt 0:01:27]} Rxa6 {[%emt 0:00:22]} 29. Qb3 {[%emt 0:03:01]} Rb6 {[%emt 0:06:09]} 30. Qa4 {[%emt 0:03:19]} h4 {[%emt 0:03:32]} 31. f4 {[%emt 0:01:24]} g5 {[%emt 0:00:40]} 32. Nf3 {[%emt 0:00:24]} Bg3 {[%emt 0:00:32]} 33. fxg5 {[%emt 0:02:53]} Qe7 {[%emt 0:00:12]} 34. Nxg3 {[%emt 0:01:17]} Nxg3+ {[%emt 0:01:11]} 35. Kf2 {[%emt 0:00:14]} Rb2+ {[%emt 0:00:22]} 36. Rc2 {[%emt 0:01:33]} b5 0-1

[Event "ROU-ch Women 2019"]
[Site "Olanesti"]
[Date "2019.03.02"]
[Round "1.19"]
[White "Ionescu, Irina"]
[Black "Obada, Ema"]
[Result "1-0"]
[ECO "C00"]
[WhiteElo "2270"]
[BlackElo "1846"]
[Annotator "NA"]
[PlyCount "71"]
[EventDate "2019.03.02"]
[EventType "swiss"]
[EventCountry "ROU"]
[SourceTitle "playchess.com"]
[Source "ChessBase"]
[SourceQuality "1"]
[TimeControl "40/5400+30:1800+30"]

1. e4 {[%emt 0:00:00]} e6 {[%emt 0:00:00]} 2. d3 {[%emt 0:00:00]} d5 {[%emt 0:00:00]} 3. Nd2 {[%emt 0:00:00]} Nf6 {[%emt 0:00:06]} 4. Ngf3 {[%emt 0:00:05]} c5 {[%emt 0:00:14]} 5. g3 {[%emt 0:00:10]} Nc6 {[%emt 0:00:17]} 6. Bg2 {[%emt 0:00:11]} Be7 {[%emt 0:00:18]} 7. O-O {[%emt 0:00:16]} b5 {[%emt 0:01:09]} 8. Re1 {[%emt 0:01:54]} O-O {[%emt 0:02:04]} 9. e5 {[%emt 0:01:28]} Nd7 {[%emt 0:00:11]} 10. Nf1 {[%emt 0:00:47]} a5 {[%emt 0:01:27]} 11. h4 {[%emt 0:00:40]} Ba6 {[%emt 0:03:47]} 12. h5 {[%emt 0:02:04]} b4 {[%emt 0:06:06]} 13. Bf4 {[%emt 0:05:17]} Nd4 {[%emt 0:10:28]} 14. Nxd4 {[%emt 0:05:13]} cxd4 {[%emt 0:00:07]} 15. Qg4 {[%emt 0:00:11]} Kh8 {[%emt 0:00:37]} 16. h6 {[%emt 0:06:53]} g6 {[%emt 0:00:23]} 17. Bd2 {[%emt 0:01:20]} Rc8 {[%emt 0:09:39]} 18. Rac1 {[%emt 0:02:49]} Qb6 {[%emt 0:11:57]} 19. Nh2 {[%emt 0:06:40]} a4 {[%emt 0:05:01]} 20. b3 {[%emt 0:07:13]} axb3 {[%emt 0:03:08]} 21. axb3 {[%emt 0:00:07]} Rc7 {[%emt 0:13:16]} 22. Nf3 {[%emt 0:01:59]} Bc5 {[%emt 0:01:50]} 23. Ng5 {[%emt 0:09:42]} Kg8 {[%emt 0:07:34]} 24. Bh3 {[%emt 0:02:19]} Be7 {[%emt 0:05:22]} 25. f4 {[%emt 0:11:04]} Rfc8 {[%emt 0:02:16]} 26. Qd1 {[%emt 0:02:36]} Bf8 {[%emt 0:01:30]} 27. f5 {[%emt 0:03:29]} exf5 {[%emt 0:01:00]} 28. e6 {[%emt 0:02:40]} fxe6 {[%emt 0:00:26]} 29. Nxe6 {[%emt 0:02:14]} Rc6 {[%emt 0:02:34]} 30. Nxf8 {[%emt 0:02:41]} Nxf8 {[%emt 0:02:04]} 31. Bg2 {[%emt 0:02:16]} Rc5 {[%emt 0:01:55]} 32. Re7 {[%emt 0:01:43]} R8c7 {[%emt 0:01:59]} 33. Qe1 {[%emt 0:01:52]} Bb7 {[%emt 0:02:52]} 34. Bxb4 {[%emt 0:02:47]} Rxc2 {[%emt 0:03:54]} 35. Rxc2 {[%emt 0:01:16]} Rxc2 {[%emt 0:00:08]} 36. Qe5 {[%emt 0:01:38]} 1-0

[Event "ROU-ch Women 2019"]
[Site "Olanesti"]
[Date "2019.03.02"]
[Round "1.20"]
[White "Didiliuc, Dariana-Gabriela"]
[Black "Dragomirescu, Angela"]
[Result "0-1"]
[ECO "A41"]
[WhiteElo "1820"]
[BlackElo "2260"]
[Annotator "NA"]
[PlyCount "66"]
[EventDate "2019.03.02"]
[EventType "swiss"]
[EventCountry "ROU"]
[SourceTitle "playchess.com"]
[Source "ChessBase"]
[SourceQuality "1"]
[TimeControl "40/5400+30:1800+30"]

1. d4 {[%emt 0:00:18]} d6 {[%emt 0:00:00]} 2. c4 {[%emt 0:00:14]} e5 {[%emt 0:00:01]} 3. Nc3 {[%emt 0:00:20]} Nd7 {[%emt 0:01:49]} 4. e4 {[%emt 0:07:38]} Ngf6 {[%emt 0:01:22]} 5. Be2 {[%emt 0:01:34]} Be7 {[%emt 0:04:25]} 6. Nf3 {[%emt 0:03:46]} O-O {[%emt 0:01:02]} 7. O-O {[%emt 0:08:24]} Re8 {[%emt 0:08:21]} 8. d5 {[%emt 0:07:10]} c6 {[%emt 0:06:34]} 9. Qc2 {[%emt 0:17:43]} a6 {[%emt 0:03:26]} 10. Rd1 {[%emt 0:02:12]} Qc7 {[%emt 0:09:08]} 11. b3 {[%emt 0:07:20]} cxd5 {[%emt 0:03:32]} 12. Nxd5 {[%emt 0:05:16]} Nxd5 {[%emt 0:00:06]} 13. Rxd5 {[%emt 0:00:10]} b5 {[%emt 0:02:03]} 14. Rd2 {[%emt 0:03:21]} Qb6 {[%emt 0:13:23]} 15. cxb5 {[%emt 0:06:11]} axb5 {[%emt 0:00:08]} 16. Rd5 {[%emt 0:00:11]} Ba6 {[%emt 0:01:29]} 17. Be3 {[%emt 0:04:18]} Qb7 {[%emt 0:00:07]} 18. Nd2 {[%emt 0:02:26]} Rec8 {[%emt 0:17:52]} 19. Qd1 {[%emt 0:01:16]} Nf6 {[%emt 0:00:54]} 20. Rd3 {[%emt 0:00:16]} b4 {[%emt 0:10:10]} 21. Nc4 {[%emt 0:00:24]} Bxc4 {[%emt 0:03:52]} 22. bxc4 {[%emt 0:00:06]} Nxe4 {[%emt 0:01:13]} 23. Bf3 {[%emt 0:00:46]} Rxc4 {[%emt 0:01:07]} 24. Rxd6 {[%emt 0:00:25]} Bxd6 {[%emt 0:01:02]} 25. Bxe4 {[%emt 0:00:12]} Qxe4 {[%emt 0:01:25]} 26. Qxd6 {[%emt 0:00:06]} h6 {[%emt 0:01:36]} 27. Qb6 {[%emt 0:03:48]} Qc6 {[%emt 0:01:59]} 28. h3 {[%emt 0:02:32]} Qxb6 {[%emt 0:00:13]} 29. Bxb6 {[%emt 0:00:05]} b3 {[%emt 0:00:04]} 30. Be3 {[%emt 0:00:23]} Rxa2 {[%emt 0:02:42]} 31. Rb1 {[%emt 0:00:10]} b2 {[%emt 0:00:07]} 32. Kh2 {[%emt 0:00:03]} Rc2 {[%emt 0:00:07]} 33. Rd1 {[%emt 0:00:35]} Ra1 {[%emt 0:00:10]} 0-1

[Event "ROU-ch Women 2019"]
[Site "Olanesti"]
[Date "2019.03.03"]
[Round "2.16"]
[White "Peptan, Corina-Isabela"]
[Black "Sgircea, Silvia-Raluca"]
[Result "1-0"]
[ECO "D27"]
[WhiteElo "2374"]
[BlackElo "2252"]
[Annotator "NA"]
[PlyCount "75"]
[EventDate "2019.03.02"]
[EventType "swiss"]
[EventCountry "ROU"]
[SourceTitle "playchess.com"]
[Source "ChessBase"]
[SourceQuality "1"]
[TimeControl "40/5400+30:1800+30"]

1. d4 {[%emt 0:01:19]} d5 {[%emt 0:00:00]} 2. c4 {[%emt 0:00:05]} dxc4 {[%emt 0:00:00]} 3. e3 {[%emt 0:00:22]} Nf6 {[%emt 0:00:49]} 4. Bxc4 {[%emt 0:00:19]} e6 {[%emt 0:00:05]} 5. Nf3 {[%emt 0:01:57]} c5 {[%emt 0:00:09]} 6. O-O {[%emt 0:00:25]} a6 {[%emt 0:00:04]} 7. b3 {[%emt 0:01:36]} cxd4 {[%emt 0:08:59]} 8. Nxd4 {[%emt 0:04:16]} Bd6 {[%emt 0:02:29]} 9. Bb2 {[%emt 0:01:47]} O-O {[%emt 0:00:49]} 10. Nd2 {[%emt 0:05:00]} Qe7 {[%emt 0:33:27]} 11. Bd3 {[%emt 0:37:08]} Nbd7 {[%emt 0:10:43]} 12. Nc4 {[%emt 0:00:48]} Bc5 {[%emt 0:00:10]} 13. Qc2 {[%emt 0:08:53]} Nb6 {[%emt 0:06:19]} 14. Nxb6 {[%emt 0:10:03]} Bxb6 {[%emt 0:00:02]} 15. Nf3 {[%emt 0:00:06]} h6 {[%emt 0:04:10]} 16. Ne5 {[%emt 0:00:13]} Bd7 {[%emt 0:12:28]} 17. Nxd7 {[%emt 0:03:07]} Nxd7 {[%emt 0:00:12]} 18. Qc4 {[%emt 0:01:19]} Rfc8 {[%emt 0:04:09]} 19. Qe4 {[%emt 0:01:41]} Nf8 {[%emt 0:00:10]} 20. Rfd1 {[%emt 0:05:39]} Bc5 {[%emt 0:03:59]} 21. Rac1 {[%emt 0:03:30]} b5 {[%emt 0:01:41]} 22. Qg4 {[%emt 0:04:29]} f6 {[%emt 0:03:39]} 23. a4 {[%emt 0:02:13]} Ba3 {[%emt 0:00:54]} 24. Rxc8 {[%emt 0:01:45]} Rxc8 {[%emt 0:00:01]} 25. Ba1 {[%emt 0:00:20]} Rb8 {[%emt 0:02:21]} 26. axb5 {[%emt 0:00:55]} axb5 {[%emt 0:00:01]} 27. Qe2 {[%emt 0:00:38]} Qb7 {[%emt 0:01:08]} 28. h3 {[%emt 0:01:21]} Qb6 {[%emt 0:03:18]} 29. Bc3 {[%emt 0:01:07]} Qc5 {[%emt 0:01:05]} 30. Qd2 {[%emt 0:00:41]} Rc8 {[%emt 0:00:44]} 31. Bd4 {[%emt 0:00:07]} Qd5 {[%emt 0:00:32]} 32. b4 {[%emt 0:00:34]} Qb3 {[%emt 0:00:31]} 33. Bc5 {[%emt 0:00:28]} Qa4 {[%emt 0:00:46]} 34. Rb1 {[%emt 0:00:40]} Qa6 {[%emt 0:00:22]} 35. Qe2 {[%emt 0:00:20]} Rb8 {[%emt 0:00:08]} 36. Ra1 {[%emt 0:00:27]} Nd7 {[%emt 0:00:14]} 37. Bd4 {[%emt 0:00:33]} Rc8 {[%emt 0:01:17]} 38. Bb2 {[%emt 0:01:48]} 1-0

[Event "ROU-ch Women 2019"]
[Site "Olanesti"]
[Date "2019.03.03"]
[Round "2.17"]
[White "Lehaci, Miruna-Daria"]
[Black "Cosma, Elena-Luminita"]
[Result "0-1"]
[ECO "C11"]
[WhiteElo "2052"]
[BlackElo "2324"]
[Annotator "NA"]
[PlyCount "116"]
[EventDate "2019.03.02"]
[EventType "swiss"]
[EventCountry "ROU"]
[SourceTitle "playchess.com"]
[Source "ChessBase"]
[SourceQuality "1"]
[TimeControl "40/5400+30:1800+30"]

1. e4 {[%emt 0:00:00]} e6 {[%emt 0:02:31]} 2. d4 {[%emt 0:00:00]} d5 {[%emt 0:00:30]} 3. Nc3 {[%emt 0:00:00]} Nf6 {[%emt 0:00:17]} 4. e5 {[%emt 0:00:00]} Nfd7 {[%emt 0:00:06]} 5. f4 {[%emt 0:00:00]} c5 {[%emt 0:00:48]} 6. Nf3 {[%emt 0:00:00]} a6 {[%emt 0:00:36]} 7. Be3 {[%emt 0:00:22]} Nc6 {[%emt 0:00:13]} 8. Qd2 {[%emt 0:00:29]} b5 {[%emt 0:00:11]} 9. a3 {[%emt 0:00:03]} Qb6 {[%emt 0:04:35]} 10. Be2 {[%emt 0:01:10]} cxd4 {[%emt 0:06:50]} 11. Nxd4 {[%emt 0:00:06]} Bc5 {[%emt 0:00:11]} 12. Rd1 {[%emt 0:00:11]} O-O {[%emt 0:02:08]} 13. O-O {[%emt 0:00:33]} Rb8 {[%emt 0:08:21]} 14. Kh1 {[%emt 0:03:56]} Bxd4 {[%emt 0:03:51]} 15. Bxd4 {[%emt 0:00:06]} Nxd4 {[%emt 0:00:05]} 16. Qxd4 {[%emt 0:00:05]} b4 {[%emt 0:01:37]} 17. axb4 {[%emt 0:16:18]} Qxb4 {[%emt 0:00:07]} 18. Qe3 {[%emt 0:05:46]} Qb6 {[%emt 0:02:04]} 19. Qg3 {[%emt 0:03:41]} f5 {[%emt 0:07:40]} 20. exf6 {[%emt 0:10:59]} Nxf6 {[%emt 0:00:38]} 21. f5 {[%emt 0:16:53]} exf5 {[%emt 0:18:14]} 22. Nxd5 {[%emt 0:04:10]} Nxd5 {[%emt 0:00:11]} 23. Rxd5 {[%emt 0:00:05]} Qxb2 {[%emt 0:00:22]} 24. Re5 {[%emt 0:02:10]} Rb6 {[%emt 0:12:03]} 25. Bc4+ {[%emt 0:03:43]} Kh8 {[%emt 0:00:19]} 26. Rfe1 {[%emt 0:01:37]} Bd7 {[%emt 0:03:12]} 27. Re7 {[%emt 0:04:22]} Rg6 {[%emt 0:01:34]} 28. Qf3 {[%emt 0:07:57]} Bc6 {[%emt 0:00:31]} 29. Rf7 {[%emt 0:01:33]} Qb4 {[%emt 0:09:09]} 30. Rxf8+ {[%emt 0:04:20]} Qxf8 {[%emt 0:00:07]} 31. Bd5 {[%emt 0:00:11]} Bxd5 {[%emt 0:00:36]} 32. Qxd5 {[%emt 0:00:04]} h6 {[%emt 0:00:54]} 33. c4 {[%emt 0:01:36]} Rd6 {[%emt 0:02:55]} 34. Qe5 {[%emt 0:03:46]} Qf6 {[%emt 0:01:33]} 35. Qe8+ {[%emt 0:02:03]} Kh7 {[%emt 0:00:07]} 36. h3 {[%emt 0:01:40]} Qd4 {[%emt 0:05:30]} 37. Qc8 {[%emt 0:03:15]} Qf2 {[%emt 0:02:03]} 38. Rg1 {[%emt 0:01:27]} Qc2 {[%emt 0:03:31]} 39. c5 {[%emt 0:03:19]} Rg6 {[%emt 0:00:05]} 40. Qc7 {[%emt 0:00:00]} Qe4 {[%emt 0:00:00]} 41. Qb8 {[%emt 0:06:46]} Qd5 {[%emt 0:12:48]} 42. Qb4 {[%emt 0:01:07]} Rg3 {[%emt 0:01:25]} 43. Kh2 {[%emt 0:02:44]} Re3 {[%emt 0:01:13]} 44. Qb6 {[%emt 0:05:02]} Re6 {[%emt 0:06:49]} 45. Qa5 {[%emt 0:01:06]} Qc4 {[%emt 0:01:21]} 46. Qa3 {[%emt 0:01:34]} Re5 {[%emt 0:04:14]} 47. Rc1 {[%emt 0:00:54]} Qf4+ {[%emt 0:00:18]} 48. Kh1 {[%emt 0:00:18]} Re3 {[%emt 0:00:14]} 49. Qb2 {[%emt 0:08:34]} Qe4 {[%emt 0:01:26]} 50. Qf2 {[%emt 0:00:19]} Rxh3+ {[%emt 0:03:11]} 51. Kg1 {[%emt 0:00:07]} Rb3 {[%emt 0:00:09]} 52. c6 {[%emt 0:00:33]} Rb8 {[%emt 0:01:09]} 53. c7 {[%emt 0:00:39]} Rc8 {[%emt 0:00:04]} 54. Qb6 {[%emt 0:02:11]} h5 {[%emt 0:01:10]} 55. Rd1 {[%emt 0:04:04]} h4 {[%emt 0:01:26]} 56. Qb8 {[%emt 0:01:29]} h3 {[%emt 0:00:56]} 57. gxh3 {[%emt 0:01:15]} Qe3+ {[%emt 0:00:19]} 58. Kf1 {[%emt 0:00:03]} Qf4+ {[%emt 0:00:13]} 0-1

[Event "ROU-ch Women 2019"]
[Site "Olanesti"]
[Date "2019.03.03"]
[Round "2.19"]
[White "Panainte, Andreea-Bianca"]
[Black "Ionescu, Irina"]
[Result "1/2-1/2"]
[ECO "B09"]
[WhiteElo "1891"]
[BlackElo "2270"]
[Annotator "NA"]
[PlyCount "109"]
[EventDate "2019.03.02"]
[EventType "swiss"]
[EventCountry "ROU"]
[SourceTitle "playchess.com"]
[Source "ChessBase"]
[SourceQuality "1"]
[TimeControl "40/5400+30:1800+30"]

1. e4 {[%emt 0:05:09]} d6 {[%emt 0:00:00]} 2. d4 {[%emt 0:00:12]} Nf6 {[%emt 0:00:00]} 3. Nc3 {[%emt 0:00:05]} g6 {[%emt 0:00:09]} 4. f4 {[%emt 0:00:08]} Bg7 {[%emt 0:00:06]} 5. Nf3 {[%emt 0:00:07]} c5 {[%emt 0:00:41]} 6. Bb5+ {[%emt 0:00:06]} Bd7 {[%emt 0:00:17]} 7. e5 {[%emt 0:00:18]} Ng4 {[%emt 0:01:14]} 8. Bxd7+ {[%emt 0:00:10]} Qxd7 {[%emt 0:02:44]} 9. h3 {[%emt 0:03:16]} cxd4 {[%emt 0:03:28]} 10. Qxd4 {[%emt 0:08:18]} Nh6 {[%emt 0:02:38]} 11. Qd3 {[%emt 0:06:11]} dxe5 {[%emt 0:08:23]} 12. fxe5 {[%emt 0:05:09]} Qxd3 {[%emt 0:06:32]} 13. cxd3 {[%emt 0:00:45]} Nc6 {[%emt 0:00:13]} 14. Bf4 {[%emt 0:03:41]} O-O-O {[%emt 0:01:25]} 15. O-O-O {[%emt 0:01:26]} Nf5 {[%emt 0:01:32]} 16. Rhe1 {[%emt 0:04:16]} Nfd4 {[%emt 0:11:38]} 17. Nxd4 {[%emt 0:15:47]} Nxd4 {[%emt 0:01:26]} 18. Kb1 {[%emt 0:04:08]} b6 {[%emt 0:10:34]} 19. Ne2 {[%emt 0:11:32]} Ne6 {[%emt 0:04:31]} 20. Bg3 {[%emt 0:03:57]} Rd7 {[%emt 0:12:57]} 21. Nf4 {[%emt 0:04:37]} Nxf4 {[%emt 0:04:13]} 22. Bxf4 {[%emt 0:00:05]} e6 {[%emt 0:01:09]} 23. Re4 {[%emt 0:00:31]} Kb7 {[%emt 0:04:37]} 24. Rc4 {[%emt 0:12:18]} Rc8 {[%emt 0:00:57]} 25. Rxc8 {[%emt 0:00:47]} Kxc8 {[%emt 0:00:04]} 26. Kc2 {[%emt 0:01:21]} Rd4 {[%emt 0:03:03]} 27. Bg3 {[%emt 0:01:20]} Kb7 {[%emt 0:01:50]} 28. Rf1 {[%emt 0:01:10]} Rd7 {[%emt 0:00:04]} 29. Kc3 {[%emt 0:00:55]} Kc6 {[%emt 0:00:29]} 30. d4 {[%emt 0:02:00]} Kd5 {[%emt 0:00:55]} 31. Kd3 {[%emt 0:00:24]} Rc7 {[%emt 0:00:23]} 32. b3 {[%emt 0:00:14]} a5 {[%emt 0:03:41]} 33. Bh4 {[%emt 0:02:37]} a4 {[%emt 0:06:17]} 34. Bd8 {[%emt 0:00:58]} Rd7 {[%emt 0:01:00]} 35. Bh4 {[%emt 0:02:42]} Bh6 {[%emt 0:03:29]} 36. Rf2 {[%emt 0:00:39]} Rc7 {[%emt 0:01:05]} 37. Bd8 {[%emt 0:00:20]} Rc1 {[%emt 0:00:41]} 38. Bxb6 {[%emt 0:00:32]} axb3 {[%emt 0:01:34]} 39. axb3 {[%emt 0:00:06]} Rd1+ {[%emt 0:00:19]} 40. Kc2 {[%emt 0:00:00]} Rc1+ {[%emt 0:00:00]} 41. Kb2 {[%emt 0:02:35]} Rc6 {[%emt 0:10:53]} 42. Bc5 {[%emt 0:01:57]} Be3 {[%emt 0:00:07]} 43. Rxf7 {[%emt 0:00:54]} Bxd4+ {[%emt 0:00:09]} 44. Bxd4 {[%emt 0:00:05]} Kxd4 {[%emt 0:00:06]} 45. Rxh7 {[%emt 0:00:22]} Kxe5 {[%emt 0:00:07]} 46. Rd7 {[%emt 0:00:19]} Ke4 {[%emt 0:01:39]} 47. Rd2 {[%emt 0:02:10]} Ke3 {[%emt 0:06:08]} 48. Rc2 {[%emt 0:00:27]} Rxc2+ {[%emt 0:01:02]} 49. Kxc2 {[%emt 0:00:03]} e5 {[%emt 0:00:16]} 50. b4 {[%emt 0:01:14]} e4 {[%emt 0:00:46]} 51. b5 {[%emt 0:04:11]} Kf2 {[%emt 0:00:06]} 52. b6 {[%emt 0:00:14]} e3 {[%emt 0:00:04]} 53. b7 {[%emt 0:00:04]} e2 {[%emt 0:00:04]} 54. b8=Q {[%emt 0:00:07]} e1=Q {[%emt 0:00:07]} 55. Qb6+ {[%emt 0:01:50] Qe2+} 1/2-1/2

[Event "ROU-ch Women 2019"]
[Site "Olanesti"]
[Date "2019.03.03"]
[Round "2.20"]
[White "Dragomirescu, Angela"]
[Black "Aciu, Malina-Andreea"]
[Result "1-0"]
[ECO "A05"]
[WhiteElo "2260"]
[BlackElo "1980"]
[Annotator "NA"]
[PlyCount "71"]
[EventDate "2019.03.02"]
[EventType "swiss"]
[EventCountry "ROU"]
[SourceTitle "playchess.com"]
[Source "ChessBase"]
[SourceQuality "1"]
[TimeControl "40/5400+30:1800+30"]

1. Nf3 {[%emt 0:01:48]} Nf6 {[%emt 0:00:00]} 2. b3 {[%emt 0:00:11]} g6 {[%emt 0:00:00]} 3. Bb2 {[%emt 0:00:05]} Bg7 {[%emt 0:00:00]} 4. e3 {[%emt 0:04:49]} O-O {[%emt 0:02:51]} 5. Be2 {[%emt 0:00:31]} d6 {[%emt 0:00:37]} 6. d4 {[%emt 0:00:59]} b6 {[%emt 0:03:40]} 7. O-O {[%emt 0:01:36]} Bb7 {[%emt 0:00:08]} 8. c4 {[%emt 0:03:36]} Nbd7 {[%emt 0:02:00]} 9. Qc2 {[%emt 0:01:10]} c5 {[%emt 0:06:25]} 10. d5 {[%emt 0:03:50]} e5 {[%emt 0:08:47]} 11. dxe6 {[%emt 0:07:18]} fxe6 {[%emt 0:00:49]} 12. Nc3 {[%emt 0:01:18]} Qe7 {[%emt 0:02:25]} 13. Rad1 {[%emt 0:00:20]} Rad8 {[%emt 0:04:35]} 14. h3 {[%emt 0:10:08]} a6 {[%emt 0:13:37]} 15. Rd2 {[%emt 0:18:16]} Nh5 {[%emt 0:16:46]} 16. Ne1 {[%emt 0:01:29]} Nhf6 {[%emt 0:01:03]} 17. Bf3 {[%emt 0:02:06]} Ne5 {[%emt 0:01:07]} 18. Bxb7 {[%emt 0:00:13]} Qxb7 {[%emt 0:00:02]} 19. f4 {[%emt 0:06:07]} Nc6 {[%emt 0:02:29]} 20. Nf3 {[%emt 0:01:10]} d5 {[%emt 0:11:28]} 21. Rfd1 {[%emt 0:01:16]} Ne7 {[%emt 0:01:31]} 22. Ng5 {[%emt 0:06:35]} Qc6 {[%emt 0:01:14]} 23. Nce4 {[%emt 0:08:29]} Nxe4 {[%emt 0:02:53]} 24. Bxg7 {[%emt 0:07:14]} Nxd2 {[%emt 0:02:43]} 25. Bxf8 {[%emt 0:00:03]} Rxf8 {[%emt 0:00:17]} 26. Qxd2 {[%emt 0:00:42]} b5 {[%emt 0:01:22]} 27. Qc3 {[%emt 0:04:43]} d4 {[%emt 0:04:07]} 28. exd4 {[%emt 0:00:44]} Rxf4 {[%emt 0:02:12]} 29. Qe3 {[%emt 0:03:03]} Rxd4 {[%emt 0:02:33]} 30. Rxd4 {[%emt 0:00:02]} cxd4 {[%emt 0:00:04]} 31. Qxd4 {[%emt 0:00:04]} Nf5 {[%emt 0:01:31]} 32. Qa7 {[%emt 0:00:13]} Qe8 {[%emt 0:05:21]} 33. Qxh7+ {[%emt 0:02:27]} Kf8 {[%emt 0:00:03]} 34. Qh8+ {[%emt 0:01:06]} Ke7 {[%emt 0:00:08]} 35. Qxe8+ {[%emt 0:00:23]} Kxe8 {[%emt 0:00:03]} 36. cxb5 {[%emt 0:01:11]} 1-0